fUST/lending_fUST_20250917
["ID","MTS","AMOUNT","RATE_DAILY","PERIOD"]
[385856993,1758061839365,-480.0,0.00022191,3]
[385856994,1758061839374,-593.25,0.00022191,3]
[385856995,1758061839383,-480.0,0.00022191,3]
[385856996,1758061839392,-480.0,0.00022191,3]
[385856997,1758061839402,-480.0,0.00022191,3]
[385856998,1758061839411,-480.0,0.00022191,3]
[385856999,1758061839421,-604.34,0.00022191,3]
[385857000,1758061839432,-528.58,0.00022191,3]
[385857001,1758061839442,-480.0,0.00022191,3]
[385857002,1758061839451,-783.25,0.00022191,3]
[385857003,1758061839460,-480.0,0.00022191,3]
[385857004,1758061839469,-480.0,0.00022191,3]
[385857005,1758061839478,-480.0,0.00022191,3]
[385857006,1758061839488,-480.0,0.00022191,3]
[385857007,1758061839498,-492.53917483,0.00022191,3]
[385857008,1758061839507,-799.58,0.00022191,3]
[385857009,1758061839517,-480.0,0.00022191,3]
[385857010,1758061839526,-480.0,0.00022191,3]
[385857011,1758061839535,-480.0,0.00022191,3]
[385857012,1758061839546,-393.05,0.00022191,3]
[385857013,1758061839556,-480.0,0.00022191,3]
[385857014,1758061839566,-480.0,0.00022191,3]
[385857015,1758061839575,-480.0,0.00022191,3]
[385857016,1758061839586,-595.11,0.00022191,3]
[385857017,1758061839596,-1787.42,0.00022191,3]
[385857018,1758061839606,-480.0,0.00022191,3]
[385857019,1758061839616,-538.15,0.00022191,3]
[385857020,1758061839627,-484.67,0.00022191,3]
[385857021,1758061839637,-588.93,0.00022191,3]
[385857022,1758061839647,-504.40607977,0.00022191,3]
[385857023,1758061839658,-911.77,0.00022191,3]
[385857024,1758061839668,-3679.8,0.00022191,3]
[385857025,1758061839677,-480.0,0.00022191,3]
[385857026,1758061839687,-480.0,0.00022191,3]
[385857027,1758061839697,-4806.35,0.00022191,3]
[385857028,1758061839705,-902.01,0.00022191,3]
[385857029,1758061839715,-484.02,0.00022191,3]
[385857030,1758061839725,-480.0,0.00022191,3]
[385857031,1758061839734,-682.95,0.00022191,3]
[385857032,1758061839743,-480.0,0.00022191,3]
[385857033,1758061839753,-2409.5,0.00022191,3]
[385857034,1758061839762,-480.0,0.00022191,3]
[385857035,1758061839772,-1914.2,0.00022191,3]
[385857036,1758061839781,-616.08,0.00022191,3]
[385857037,1758061839791,-480.0,0.00022191,3]
[385857038,1758061839800,-1074.29,0.00022191,3]
[385857039,1758061839809,-2441.22,0.00022191,3]
[385857040,1758061839818,-703.22,0.00022191,3]
[385857041,1758061839827,-480.0,0.00022191,3]
[385857042,1758061839836,-9604.25,0.00022191,3]
[385857043,1758061839845,-629.89,0.00022191,3]
[385857044,1758061839855,-583.98,0.00022191,3]
[385857045,1758061839864,-710.81,0.00022191,3]
[385857046,1758061839875,-846.15,0.00022191,3]
[385857047,1758061839893,-1609.76,0.00022191,3]
[385857048,1758061839906,-687.64,0.00022191,3]
[385857049,1758061839918,-480.0,0.00022191,3]
[385857050,1758061839929,-918.77,0.00022191,3]
[385857052,1758061839940,-1833.32,0.00022191,3]
[385857053,1758061839954,-480.0,0.00022191,3]
[385857054,1758061839966,-2097.31,0.00022191,3]
[385857055,1758061839978,-480.0,0.00022191,3]
[385857056,1758061839992,-1799.85,0.00022191,3]
[385857057,1758061840004,-480.0,0.00022191,3]
[385857058,1758061840018,-480.0,0.00022191,3]
[385857059,1758061840031,-480.0,0.00022191,3]
[385857062,1758061840044,-480.0,0.00022191,3]
[385857063,1758061840055,-480.0,0.00022191,3]
[385857064,1758061840068,-480.0,0.00022191,3]
[385857065,1758061840081,-480.0,0.00022191,3]
[385857066,1758061840093,-1143.16,0.00022191,3]
[385857067,1758061840105,-678.19,0.00022191,3]
[385857068,1758061840116,-480.0,0.00022191,3]
[385857069,1758061840128,-480.0,0.00022191,3]
[385857070,1758061840138,-538.76238679,0.00022191,3]
[385857071,1758061840154,-1023.51761321,0.00022191,3]
[385857072,1758061840165,-17512.27,0.00022191,3]
[385857074,1758061840177,-480.0,0.00022191,3]
[385857075,1758061840190,-1042.39,0.00022191,3]
[385857076,1758061840203,-778.3,0.00022191,3]
[385857077,1758061840215,-480.0,0.00022191,3]
[385857079,1758061840228,-480.0,0.00022191,3]
[385857080,1758061840241,-480.0,0.00022191,3]
[385857081,1758061840254,-559.14,0.00022191,3]
[385857082,1758061840265,-3438.84,0.00022191,3]
[385857083,1758061840280,-4242.84,0.00022191,3]
[385857084,1758061840293,-560.91,0.00022191,3]
[385857085,1758061840306,-510.13,0.00022191,3]
[385857086,1758061840322,-901.02,0.00022191,3]
[385857087,1758061840335,-480.0,0.00022191,3]
[385857088,1758061840345,-480.0,0.00022191,3]
[385857089,1758061840357,-889.15,0.00022191,3]
[385857090,1758061840369,-992.31,0.00022191,3]
[385857091,1758061840380,-2093.05,0.00022191,3]
[385857092,1758061840392,-273.76662306,0.00022191,3]
[385857093,1758061840402,-862.18,0.00022191,3]
[385857094,1758061840413,-2127.23,0.00022191,3]
[385857095,1758061840423,-537.37,0.00022191,3]
[385857096,1758061840435,-1504.97,0.00022191,3]
[385857097,1758061840445,-512.9,0.00022191,3]
[385857099,1758061840458,-480.0,0.00022191,3]
[385857101,1758061840469,-480.0,0.00022191,3]
[385857102,1758061840480,-480.0,0.00022191,3]
[385857103,1758061840491,-798.63,0.00022191,3]
[385857104,1758061840502,-480.0,0.00022191,3]
[385857105,1758061840513,-1139.32,0.00022191,3]
[385857106,1758061840524,-1153.62,0.00022191,2]
[385857107,1758061840535,-480.0,0.00022191,3]
[385857108,1758061840546,-3443.11,0.00022191,3]
[385857109,1758061840556,-480.0,0.00022191,3]
[385857110,1758061840567,-634.18,0.00022191,3]
[385857111,1758061840578,-872.0468358,0.00022265,2]
[385857112,1758061840589,-36821.99585734,0.00022265,2]
[385857113,1758061840603,-6451.03016041,0.00022265,2]
[385857114,1758061840620,-7827.40051223,0.00022265,2]
[385857115,1758061840634,-8542.22877212,0.00022265,2]
[385857116,1758061840652,-2609.62706379,0.00022265,2]
[385857117,1758061840666,-3725.24038495,0.00022265,2]
[385857118,1758061840690,-1468.65725601,0.00022265,2]
[385857119,1758061840703,-711.80323751,0.00022265,2]
[385857120,1758061840821,-480.0,0.00021917,2]
[385857121,1758061840831,-480.0,0.00022191,3]
[385857122,1758061840842,-107458.30512704,0.00022265,2]
[385857123,1758061840855,-31792.35988989,0.00022265,2]
[385857124,1758061840865,-214.08171348,0.00022273,2]
[385857125,1758061840876,-500.0,0.00022273,2]
[385857126,1758061840887,-500.0,0.00022273,2]
[385857127,1758061840897,-513.23307313,0.00022273,2]
[385857128,1758061840906,-500.0,0.00022273,2]
[385857129,1758061840915,-184.55676808,0.00022273,2]
[385857130,1758061840925,-500.0,0.00022273,2]
[385857131,1758061840934,-500.0,0.00022273,2]
[385857132,1758061840944,-500.0,0.00022273,2]
[385857133,1758061840954,-500.0,0.00022273,2]
[385857134,1758061840965,-500.0,0.00022273,2]
[385857135,1758061840974,-500.0,0.00022273,2]
[385857136,1758061840983,-500.0,0.00022273,2]
[385857137,1758061840992,-500.0,0.00022273,2]
[385857138,1758061841001,-500.0,0.00022273,2]
[385857139,1758061841010,-500.0,0.00022273,2]
[385857140,1758061841020,-501.43906007,0.00022273,2]
[385857141,1758061841029,-323.14592422,0.00022273,2]
[385857142,1758061841038,-500.0,0.00022273,2]
[385857143,1758061841048,-503.52506841,0.00022273,2]
[385857144,1758061841204,-500.0,0.00022273,2]
[385857145,1758061841216,-500.0,0.00022273,2]
[385857146,1758061841225,-501.18299892,0.00022273,2]
[385857147,1758061841234,-341.02721539,0.00022273,2]
[385857148,1758061841242,-500.0,0.00022273,2]
[385857149,1758061841251,-188.84353114,0.00022273,2]
[385857150,1758061841260,-500.0,0.00022273,2]
[385857151,1758061841270,-500.0,0.00022273,2]
[385857152,1758061841282,-500.0,0.00022273,2]
[385857153,1758061841291,-500.0,0.00022273,2]
[385857154,1758061841300,-228.37094817,0.00022273,2]
[385857155,1758061841309,-5686.83368323,0.00022328,2]
[385857156,1758061841321,-3386.15059537,0.00022328,2]
[385857157,1758061841330,-977.0,0.00022361,2]
[385857158,1758061841339,-634.0,0.00022361,2]
[385857159,1758061841348,-2157.0,0.00022361,2]
[385857160,1758061841357,-389.056,0.00022361,2]
[385857161,1758061841365,-412.92,0.00022361,2]
[385857162,1758061841374,-440.50442988,0.00022398,2]
[385857163,1758061841383,-480.0,0.00022465,3]
[385857164,1758061841392,-480.0,0.00022465,3]
[385857165,1758061841401,-283.43897475,0.00022465,3]
[385857174,1758061843703,-230.86,0.00022,2]
[385857175,1758061843713,-196.56102525,0.00022465,3]
[385857176,1758061843722,-480.0,0.00022465,3]
[385857177,1758061843731,-175.92897475,0.00022465,3]
[385857189,1758061846550,-1638.47,0.00021917,2]
[385857190,1758061846560,-826.84,0.00021917,2]
[385857191,1758061846569,-1638.47,0.00022191,3]
[385857192,1758061846578,-826.84,0.00022191,3]
[385857193,1758061846588,-304.07102525,0.00022465,3]
[385857194,1758061846597,-284.04,0.00022465,3]
[385857195,1758061846606,-480.0,0.00022465,3]
[385857196,1758061846615,-1473.06,0.00022465,3]
[385857197,1758061846624,-480.0,0.00022465,3]
[385857198,1758061846634,-480.0,0.00022465,3]
[385857199,1758061846643,-480.0,0.00022465,3]
[385857200,1758061846652,-480.0,0.00022465,3]
[385857201,1758061846662,-480.0,0.00022465,3]
[385857202,1758061846671,-480.0,0.00022465,3]
[385857203,1758061846680,-480.0,0.00022465,3]
[385857204,1758061846690,-480.0,0.00022465,3]
[385857205,1758061846699,-480.0,0.00022465,3]
[385857206,1758061846708,-480.0,0.00022465,3]
[385857207,1758061846717,-729.89,0.00022465,3]
[385857208,1758061846727,-480.0,0.00022465,3]
[385857209,1758061846736,-480.0,0.00022465,3]
[385857210,1758061846745,-853.65,0.00022465,3]
[385857211,1758061846754,-549.16,0.00022465,3]
[385857212,1758061846763,-480.0,0.00022465,3]
[385857213,1758061846772,-480.0,0.00022465,3]
[385857214,1758061846781,-480.0,0.00022465,3]
[385857215,1758061846791,-520.87,0.00022465,3]
[385857216,1758061846799,-480.0,0.00022465,3]
[385857217,1758061846809,-480.0,0.00022465,3]
[385857218,1758061846818,-480.0,0.00022465,3]
[385857219,1758061846828,-796.25,0.00022465,3]
[385857220,1758061846837,-480.0,0.00022465,3]
[385857221,1758061846847,-480.0,0.00022465,3]
[385857222,1758061846855,-964.57,0.00022465,3]
[385857223,1758061846865,-480.0,0.00022465,3]
[385857224,1758061846874,-593.25,0.00022465,3]
[385857225,1758061846883,-480.0,0.00022465,3]
[385857226,1758061846892,-480.0,0.00022465,3]
[385857227,1758061846901,-604.34,0.00022465,3]
[385857228,1758061846911,-480.0,0.00022465,3]
[385857229,1758061846921,-528.58,0.00022465,3]
[385857230,1758061846930,-783.25,0.00022465,3]
[385857231,1758061846940,-480.0,0.00022465,3]
[385857232,1758061846949,-480.0,0.00022465,3]
[385857233,1758061846959,-403.29004746,0.00022465,3]
[385857234,1758061846968,-273.14388589,0.00022465,3]
[385857235,1758061846977,-799.58,0.00022465,3]
[385857236,1758061846987,-480.0,0.00022465,3]
[385857237,1758061846996,-480.0,0.00022465,3]
[385857238,1758061847005,-480.0,0.00022465,3]
[385857239,1758061847015,-480.0,0.00022465,3]
[385857240,1758061847024,-340.64065777,0.00022465,3]
[385857241,1758061847034,-480.0,0.00022465,3]
[385857242,1758061847043,-595.11,0.00022465,3]
[385857243,1758061847052,-480.0,0.00022465,3]
[385857244,1758061847061,-538.15,0.00022465,3]
[385857245,1758061847070,-484.67,0.00022465,3]
[385857246,1758061847079,-911.77,0.00022465,3]
[385857247,1758061847089,-3679.8,0.00022465,3]
[385857248,1758061847099,-480.0,0.00022465,3]
[385857249,1758061847108,-480.0,0.00022465,3]
[385857250,1758061847117,-4806.35,0.00022465,3]
[385857251,1758061847126,-682.95,0.00022465,3]
[385857252,1758061847135,-480.0,0.00022465,3]
[385857253,1758061847145,-246.03,0.00022465,3]
[385857254,1758061847155,-2409.5,0.00022465,3]
[385857255,1758061847164,-480.0,0.00022465,3]
[385857256,1758061847173,-1914.2,0.00022465,3]
[385857257,1758061847183,-616.08,0.00022465,3]
[385857258,1758061847192,-480.0,0.00022465,3]
[385857259,1758061847201,-1074.29,0.00022465,3]
[385857260,1758061847210,-2441.22,0.00022465,3]
[385857261,1758061847220,-703.22,0.00022465,3]
[385857262,1758061847230,-480.0,0.00022465,3]
[385857263,1758061847239,-9604.25,0.00022465,3]
[385857264,1758061847251,-629.89,0.00022465,3]
[385857265,1758061847260,-583.98,0.00022465,3]
[385857266,1758061847270,-710.81,0.00022465,3]
[385857267,1758061847281,-707.6375841,0.00022465,3]
[385857268,1758061847296,-138.5124159,0.00022465,3]
[385857269,1758061847306,-186.14325923,0.00022465,3]
[385857270,1758061847317,-322.34432487,0.00022465,3]
[385857271,1758061848052,-1101.2724159,0.00022465,3]
[385857272,1758061848062,-687.64,0.00022465,3]
[385857273,1758061848071,-918.77,0.00022465,3]
[385857274,1758061848081,-480.0,0.00022465,3]
[385857275,1758061848091,-1833.32,0.00022465,3]
[385857276,1758061848101,-2097.31,0.00022465,3]
[385857277,1758061848110,-1799.85,0.00022465,3]
[385857278,1758061848119,-480.0,0.00022465,3]
[385857279,1758061848129,-480.0,0.00022465,3]
[385857280,1758061848139,-480.0,0.00022465,3]
[385857281,1758061848148,-480.0,0.00022465,3]
[385857282,1758061848158,-480.0,0.00022465,3]
[385857283,1758061848168,-480.0,0.00022465,3]
[385857284,1758061848177,-960.16763453,0.00022465,3]
[385857285,1758061864748,300.0,0.00021916,2]
[385857286,1758061870830,9700.01,0.00021817,2]
[385857287,1758061870853,10000.01,0.00021817,2]
[385857288,1758061870875,10000.01,0.00021817,2]
[385857289,1758061870898,10000.01,0.00021817,2]
[385857290,1758061870921,10000.01,0.00021817,2]
[385857291,1758061870944,10000.01,0.00021817,2]
[385857292,1758061870966,10000.01,0.00021817,2]
[385857293,1758061871006,396.45398695,0.000199,2]
[385857294,1758061871041,396.45398689,0.00021149,2]
[385857297,1758062053673,391.27129002,0.000199,2]
[385857298,1758062053770,391.2712899,0.00021149,2]
[385857301,1758062103219,262.0,0.0002015,2]
[385857326,1758062244931,365.18653724,0.000199,2]
[385857327,1758062245006,365.18653724,0.00021149,2]
[385857365,1758062434550,340.66742812,0.000199,2]
[385857366,1758062434679,340.667428,0.00021149,2]
[385857385,1758062628107,317.94877987,0.000199,2]
[385857386,1758062628195,317.94877977,0.00021149,2]
[385857433,1758062821997,295.52976015,0.000199,2]
[385857434,1758062822086,295.52975988,0.00021149,2]
[385857458,1758062878872,12035.13406533,0.00028,30]
[385857537,1758063013633,274.57777612,0.000199,2]
[385857538,1758063013729,274.57777588,0.00021149,2]
[385857568,1758063032798,-646.01131892,0.00021717,2]
[385857569,1758063032808,-300.0,0.00021815,2]
[385857570,1758063032817,-1200.0,0.00021815,2]
[385857571,1758063032826,-19252.23907452,0.00021816,2]
[385857572,1758063032837,-1185.32255015,0.00021816,2]
[385857573,1758063032848,-7450.67739978,0.00021816,2]
[385857574,1758063032857,-500.0,0.00021816,2]
[385857575,1758063032866,-500.0,0.00021816,2]
[385857576,1758063032875,-500.0,0.00021816,2]
[385857577,1758063032884,-500.0,0.00021816,2]
[385857578,1758063032893,-500.0,0.00021816,2]
[385857579,1758063032902,-500.0,0.00021816,2]
[385857581,1758063032912,-286.47487882,0.00021816,2]
[385857582,1758063032921,-390.96408769,0.00021816,2]
[385857584,1758063032930,-589.91651343,0.00021816,2]
[385857586,1758063032939,-185.7698202,0.00021816,2]
[385857587,1758063032948,-500.0,0.00021816,2]
[385857588,1758063032957,-281.88335861,0.00021816,2]
[385857589,1758063032968,-218.11664139,0.00021816,2]
[385857590,1758063032977,-198.35380898,0.00021816,2]
[385857591,1758063032986,-500.0,0.00021816,2]
[385857592,1758063032995,-500.0,0.00021816,2]
[385857593,1758063033003,-500.0,0.00021816,2]
[385857595,1758063033013,-500.0,0.00021816,2]
[385857597,1758063033021,-500.0,0.00021816,2]
[385857599,1758063033030,-267.73987132,0.00021816,2]
[385857600,1758063033039,-450.0,0.00021816,2]
[385857601,1758063033048,-13933.73080591,0.00021817,2]
[385857602,1758063033059,-2391.78075886,0.00021817,2]
[385857603,1758063033070,-139558.29360322,0.00021817,2]
[385857604,1758063033082,-956.23404994,0.00021817,2]
[385857605,1758063033093,-319.82057501,0.00021817,2]
[385857748,1758063038782,-41476.54465506,0.00021817,2]
[385857749,1758063038791,-4078.70205488,0.00021817,2]
[385857750,1758063038802,-168.0,0.00021869,2]
[385857751,1758063038811,-847.61663983,0.00021908,2]
[385857753,1758063038820,-217.86301978,0.00021909,2]
[385857754,1758063038830,-160.0,0.00021909,2]
[385857755,1758063038839,-160.0,0.00021909,2]
[385857756,1758063038848,-233.29513139,0.00021909,2]
[385857757,1758063038857,-155.0,0.00021916,2]
[385857758,1758063038867,-480.0,0.00021917,2]
[385857759,1758063038876,-480.0,0.00021917,2]
[385857760,1758063038886,-480.0,0.00021917,2]
[385857761,1758063038897,-480.0,0.00021917,2]
[385857762,1758063038907,-480.0,0.00021917,2]
[385857763,1758063038917,-480.0,0.00021917,2]
[385857764,1758063038927,-480.0,0.00021917,2]
[385857765,1758063038936,-480.0,0.00021917,2]
[385857766,1758063038945,-480.0,0.00021917,2]
[385857767,1758063038954,-480.0,0.00021917,2]
[385857768,1758063038963,-481.25129519,0.00021917,2]
[385857769,1758063038972,-480.0,0.00021917,2]
[385857770,1758063038981,-480.0,0.00021917,2]
[385857771,1758063038990,-480.0,0.00021917,2]
[385857772,1758063038998,-480.0,0.00021917,2]
[385857773,1758063039007,-480.0,0.00021917,2]
[385857774,1758063039016,-480.0,0.00021917,2]
[385857775,1758063039026,-480.0,0.00021917,2]
[385857776,1758063039035,-480.0,0.00021917,2]
[385857777,1758063039044,-480.0,0.00021917,2]
[385857778,1758063039053,-480.0,0.00021917,2]
[385857779,1758063039062,-230.74025366,0.00021917,2]
[385857780,1758063039072,-480.0,0.00021917,2]
[385857781,1758063039081,-480.0,0.00021917,2]
[385857782,1758063039090,-480.0,0.00021917,2]
[385857783,1758063039103,-539.83,0.00021917,2]
[385857784,1758063039112,-480.0,0.00021917,2]
[385857785,1758063039121,-480.0,0.00021917,2]
[385857786,1758063039130,-480.0,0.00021917,2]
[385857787,1758063039139,-480.0,0.00021917,2]
[385857788,1758063039148,-480.0,0.00021917,2]
[385857789,1758063039157,-480.0,0.00021917,2]
[385857790,1758063039166,-480.0,0.00021917,2]
[385857791,1758063039176,-480.0,0.00021917,2]
[385857792,1758063039185,-480.0,0.00021917,2]
[385857793,1758063039193,-480.0,0.00021917,2]
[385857794,1758063039203,-480.0,0.00021917,2]
[385857795,1758063039212,-480.0,0.00021917,2]
[385857796,1758063039221,-480.0,0.00021917,2]
[385857797,1758063039230,-480.0,0.00021917,2]
[385857798,1758063039240,-480.0,0.00021917,2]
[385857799,1758063039249,-480.0,0.00021917,2]
[385857800,1758063039259,-155.81759651,0.00021917,2]
[385857801,1758063039268,-480.0,0.00021917,2]
[385857802,1758063039277,-480.0,0.00021917,2]
[385857803,1758063039286,-480.0,0.00021917,2]
[385857804,1758063039295,-480.0,0.00021917,2]
[385857805,1758063039305,-480.0,0.00021917,2]
[385857806,1758063039313,-480.0,0.00021917,2]
[385857807,1758063039322,-480.0,0.00021917,2]
[385857808,1758063039332,-480.0,0.00021917,2]
[385857809,1758063039342,-480.0,0.00021917,2]
[385857810,1758063039351,-480.0,0.00021917,2]
[385857811,1758063039361,-445.42068606,0.00021917,2]
[385857812,1758063039370,-455.08241635,0.00021917,2]
[385857813,1758063039379,-480.0,0.00021917,2]
[385857814,1758063039388,-480.0,0.00021917,2]
[385857815,1758063039397,-603.04731825,0.00021917,2]
[385857816,1758063039406,-480.0,0.00021917,2]
[385857817,1758063039415,-480.0,0.00021917,2]
[385857818,1758063039425,-480.0,0.00021917,2]
[385857819,1758063039434,-549.89277156,0.00021917,2]
[385857820,1758063039444,-480.0,0.00021917,2]
[385857822,1758063039453,-349.4880386,0.00021917,2]
[385857823,1758063039463,-480.0,0.00021917,2]
[385857824,1758063039472,-487.62,0.00021917,2]
[385857826,1758063039482,-480.0,0.00021917,2]
[385857827,1758063039491,-480.0,0.00021917,2]
[385857828,1758063039500,-480.0,0.00021917,2]
[385857829,1758063039509,-721.57,0.00021917,2]
[385857830,1758063039519,-480.0,0.00021917,2]
[385857831,1758063039528,-523.99,0.00021917,2]
[385857832,1758063039537,-835.87,0.00021917,2]
[385857833,1758063039547,-533.83,0.00021917,2]
[385857834,1758063039556,-151.0,0.00021917,2]
[385857835,1758063039566,-204.93562152,0.00021917,2]
[385857836,1758063039577,-500.0,0.00021917,2]
[385857837,1758063039586,-480.0,0.00021917,2]
[385857838,1758063039596,-480.0,0.00021917,2]
[385857839,1758063039605,-1148.62,0.00021917,2]
[385857840,1758063039614,-480.0,0.00021917,2]
[385857841,1758063039625,-480.0,0.00021917,2]
[385857842,1758063039634,-480.0,0.00021917,2]
[385857843,1758063039644,-480.0,0.00021917,2]
[385857844,1758063039653,-480.0,0.00021917,2]
[385857845,1758063039662,-480.0,0.00021917,2]
[385857846,1758063039671,-480.0,0.00021917,2]
[385857847,1758063039681,-480.0,0.00021917,2]
[385857848,1758063039690,-480.0,0.00021917,2]
[385857849,1758063039809,-255.83152012,0.00021917,2]
[385857850,1758063039820,-480.0,0.00021917,2]
[385857851,1758063039829,-480.0,0.00021917,2]
[385857852,1758063039839,-577.78,0.00021917,2]
[385857853,1758063039849,-480.0,0.00021917,2]
[385857854,1758063039857,-3486.37,0.00021917,2]
[385857855,1758063039867,-480.0,0.00021917,2]
[385857856,1758063039877,-480.0,0.00021917,2]
[385857857,1758063039886,-584.33,0.00021917,2]
[385857858,1758063039896,-1431.49,0.00021917,2]
[385857859,1758063039905,-480.0,0.00021917,2]
[385857860,1758063039914,-480.0,0.00021917,2]
[385857861,1758063039924,-480.0,0.00021917,2]
[385857862,1758063039933,-480.0,0.00021917,2]
[385857863,1758063039942,-480.0,0.00021917,2]
[385857864,1758063039951,-480.0,0.00021917,2]
[385857865,1758063039960,-598.06,0.00021917,2]
[385857866,1758063039970,-480.0,0.00021917,2]
[385857867,1758063039979,-500.0,0.00021917,2]
[385857868,1758063039988,-480.0,0.00021917,2]
[385857869,1758063039997,-575.24476819,0.00021917,2]
[385857870,1758063040006,-151.0,0.00021917,2]
[385857871,1758063040016,-480.0,0.00021917,2]
[385857872,1758063040025,-480.0,0.00021917,2]
[385857873,1758063040035,-480.0,0.00021917,2]
[385857874,1758063040044,-480.0,0.00021917,2]
[385857875,1758063040053,-480.0,0.00021917,2]
[385857876,1758063040063,-480.0,0.00021917,2]
[385857877,1758063040072,-480.0,0.00021917,2]
[385857878,1758063040082,-480.0,0.00021917,2]
[385857879,1758063040091,-480.0,0.00021917,2]
[385857880,1758063040106,-480.0,0.00021917,2]
[385857881,1758063040116,-480.0,0.00021917,2]
[385857882,1758063040126,-480.0,0.00021917,2]
[385857883,1758063040136,-480.0,0.00021917,2]
[385857884,1758063040146,-480.0,0.00021917,2]
[385857885,1758063040156,-17946.2,0.00021917,2]
[385857886,1758063040165,-480.0,0.00021917,2]
[385857887,1758063040176,-480.0,0.00021917,2]
[385857888,1758063040185,-480.0,0.00021917,2]
[385857889,1758063040195,-2028.78,0.00021917,2]
[385857890,1758063040204,-926.35,0.00021917,2]
[385857891,1758063040214,-480.0,0.00021917,2]
[385857892,1758063040223,-480.0,0.00021917,2]
[385857893,1758063040233,-514.1,0.00021917,2]
[385857894,1758063040243,-480.0,0.00021917,2]
[385857895,1758063040253,-524.97860822,0.00021917,2]
[385857896,1758063040263,-480.0,0.00021917,2]
[385857897,1758063040273,-480.0,0.00021917,2]
[385857898,1758063040282,-480.0,0.00021917,2]
[385857899,1758063040292,-480.0,0.00021917,2]
[385857900,1758063040302,-480.0,0.00021917,2]
[385857901,1758063040311,-480.0,0.00021917,2]
[385857902,1758063040321,-480.0,0.00021917,2]
[385857903,1758063040330,-919.05,0.00021917,2]
[385857904,1758063040339,-480.0,0.00021917,2]
[385857905,1758063040349,-606.17015227,0.00021917,2]
[385857906,1758063040359,-480.0,0.00021917,2]
[385857907,1758063040368,-921.75,0.00021917,2]
[385857908,1758063040378,-480.0,0.00021917,2]
[385857909,1758063040388,-3483.56,0.00021917,2]
[385857910,1758063040397,-480.0,0.00021917,2]
[385857911,1758063040406,-480.0,0.00021917,2]
[385857912,1758063040416,-480.0,0.00021917,2]
[385857913,1758063040425,-480.0,0.00021917,2]
[385857914,1758063040435,-480.0,0.00021917,2]
[385857915,1758063040444,-480.0,0.00021917,2]
[385857916,1758063040454,-480.0,0.00021917,2]
[385857917,1758063040463,-898.69,0.00021917,2]
[385857918,1758063040473,-480.0,0.00021917,2]
[385857919,1758063040482,-855.02,0.00021917,2]
[385857920,1758063040492,-1534.99,0.00021917,2]
[385857921,1758063040501,-700.52,0.00021917,2]
[385857922,1758063040511,-591.48,0.00021917,2]
[385857923,1758063040520,-480.0,0.00021917,2]
[385857924,1758063040529,-777.62,0.00021917,2]
[385857925,1758063040538,-518.22,0.00021917,2]
[385857926,1758063040547,-480.0,0.00021917,2]
[385857927,1758063040556,-480.0,0.00021917,2]
[385857928,1758063040565,-598.49,0.00021917,2]